bitfinex/quotes_SOLUSD_20250419
["timestamp","ask_amount","ask_price","bid_price","bid_amount"]
[1745081460874,82.4,137.69,137.67,27.00408221]
[1745081461049,82.4,137.69,137.67,0.03]
[1745081464682,82.4,137.69,137.67,27.00408221]
[1745081464980,82.4,137.73,137.69,18.64964886]
[1745081465153,89.65958799,137.75,137.72,26.97408221]
[1745081465554,89.65958799,137.75,137.71,26.97408221]
[1745081468783,82.4,137.75,137.72,26.97408221]
[1745081468982,16.52,137.76,137.74,26.97408221]
[1745081469281,82.4,137.77,137.75,26.97408221]
[1745081470083,82.4,137.77,137.76,26.97408221]
[1745081470283,98.92,137.8,137.76,26.97408221]
[1745081470514,82.4,137.83,137.79,26.97408221]
[1745081470661,82.4,137.82,137.8,26.97408221]
[1745081470987,50.81195076,137.84,137.78,7.25745108]
[1745081471194,23.83786855,137.84,137.78,26.97408221]
[1745081471373,26.97408221,137.82,137.77,26.97408221]
[1745081471698,26.97408221,137.82,137.77,34.23251895]
[1745081471904,26.97408221,137.82,137.76,8.90541003]
[1745081472089,26.97408221,137.8,137.76,26.97408221]
[1745081472291,109.37408221,137.81,137.76,26.97408221]
[1745081472808,116.63074778,137.81,137.76,26.97408221]
[1745081473410,16.83996732,137.79,137.75,16.83996732]
[1745081473792,99.23996732,137.8,137.75,16.83996732]
[1745081474505,82.4,137.8,137.77,16.83996732]
[1745081474804,106.49721472,137.8,137.75,16.83996732]
[1745081475184,106.49721472,137.8,137.75,24.09944714]
[1745081475386,82.4,137.8,137.76,16.83996732]
[1745081476183,82.4,137.8,137.77,16.83996732]
[1745081476383,82.4,137.8,137.78,16.83996732]
[1745081476916,82.4,137.8,137.79,16.83996732]
[1745081477410,82.4,137.8,137.78,24.09771945]
[1745081478028,82.4,137.8,137.79,16.83996732]
[1745081478219,0.063,137.84,137.8,18.64964886]
[1745081478386,0.063,137.84,137.82,16.83996732]
[1745081478584,0.063,137.84,137.81,16.83996732]
[1745081478996,0.063,137.84,137.81,24.09613849]
[1745081479412,0.063,137.84,137.82,16.83996732]
[1745081480291,0.063,137.84,137.81,16.83996732]
[1745081480497,16.90296732,137.84,137.79,16.83996732]
[1745081480687,16.83996732,137.82,137.78,7.25779029]
[1745081480919,99.23996732,137.83,137.78,24.09775761]
[1745081481121,82.4,137.83,137.79,16.83996732]
[1745081481490,82.4,137.83,137.8,16.83996732]
[1745081481705,82.4,137.83,137.79,16.83996732]
[1745081482213,99.23996732,137.83,137.78,24.09775761]
[1745081483425,82.4,137.83,137.79,16.83996732]
[1745081484502,82.4,137.83,137.78,24.09775761]
[1745081485000,16.83996732,137.79,137.73,18.64964886]
[1745081485212,16.83996732,137.78,137.73,35.48961618]
[1745081485392,16.83996732,137.78,137.73,42.75019847]
[1745081485594,16.83996732,137.78,137.73,25.91023115]
[1745081485817,16.83996732,137.79,137.74,16.83996732]
[1745081486498,99.23996732,137.8,137.74,16.83996732]
[1745081486696,82.4,137.8,137.76,24.09896848]
[1745081486905,99.23996732,137.8,137.75,25.9089717]
[1745081487108,99.23996732,137.79,137.74,24.0998651]
[1745081487514,82.4,137.79,137.74,7.25989778]
[1745081487694,82.4,137.79,137.76,16.83996732]
[1745081487895,6.4261,137.81,137.77,16.83996732]
[1745081488115,82.4,137.82,137.78,16.83996732]
[1745081488338,82.4,137.82,137.75,18.64964886]
[1745081488339,82.4,137.82,137.81,16.83996732]
[1745081488627,0.063,137.84,137.81,16.83996732]
[1745081488824,0.063,137.84,137.83,16.83996732]
[1745081490727,0.063,137.84,137.83,24.09528183]
[1745081490931,0.063,137.84,137.83,42.74493069]
[1745081491614,0.063,137.84,137.82,24.09567989]
[1745081491918,0.063,137.84,137.82,7.25571257]
[1745081492927,0.063,137.84,137.83,16.83996732]
[1745081493118,0.063,137.84,137.83,35.48961618]
[1745081494123,0.063,137.84,137.83,37.14241618]
[1745081494797,0.063,137.84,137.83,25.90496337]
[1745081495129,0.063,137.84,137.83,52.81647826]
[1745081495832,0.063,137.84,137.83,25.90496337]
[1745081496337,0.063,137.84,137.83,52.81647826]
[1745081497236,0.063,137.84,137.82,18.64964886]
[1745081497529,0.063,137.84,137.82,45.56116375]
[1745081498331,0.063,137.84,137.83,26.91151489]
[1745081498725,0.063,137.84,137.82,25.9051126]
[1745081498927,0.063,137.84,137.83,26.91151489]
[1745081499625,0.063,137.84,137.82,26.91151489]
[1745081500128,0.063,137.84,137.8,18.64964886]
[1745081500314,0.063,137.84,137.8,26.91151489]
[1745081501133,0.063,137.84,137.81,26.91151489]
[1745081502502,0.063,137.84,137.81,34.16756842]
[1745081502907,0.063,137.84,137.82,26.91151489]
[1745081503129,0.063,137.84,137.83,26.91151489]
[1745081504508,0.063,137.84,137.83,34.1668294]
[1745081505028,0.063,137.84,137.76,1.5983]
[1745081505211,0.063,137.84,137.8,26.91151489]
[1745081505546,0.063,137.84,137.81,26.91151489]
[1745081506733,0.063,137.84,137.81,34.16774405]
[1745081506928,0.063,137.84,137.82,26.91151489]
[1745081507628,26.97451489,137.84,137.79,7.25742071]
[1745081507828,26.97451489,137.84,137.79,34.1689356]
[1745081509139,0.063,137.84,137.8,34.16792763]
[1745081509334,0.063,137.84,137.81,26.91151489]
[1745081509843,0.063,137.84,137.82,26.91151489]
[1745081510720,0.063,137.84,137.81,45.56116375]
[1745081511225,0.063,137.84,137.81,52.81731499]
[1745081512943,0.063,137.84,137.82,26.91151489]
[1745081513120,0.063,137.84,137.83,26.91151489]
[1745081513327,0.063,137.84,137.79,26.91151489]
[1745081513734,0.063,137.84,137.8,26.91151489]
[1745081514435,0.063,137.84,137.81,26.91151489]
[1745081514829,0.063,137.84,137.82,7.25584095]
[1745081516845,109.37451489,137.84,137.78,18.64964886]
[1745081517049,109.31151489,137.83,137.78,45.56116375]
[1745081517345,99.23402356,137.83,137.78,35.48367242]
[1745081517528,99.23402356,137.83,137.79,7.25722402]
[1745081517729,82.4,137.83,137.79,7.25722402]
[1745081517941,82.4,137.83,137.79,24.09124758]
[1745081520233,82.4,137.83,137.78,42.74137443]
[1745081521355,99.23402356,137.83,137.78,42.74137443]
[1745081521958,106.48936233,137.83,137.78,42.74137443]
[1745081522130,99.23402356,137.82,137.77,7.25825699]
[1745081522336,99.23402356,137.81,137.77,7.25825699]
[1745081523149,16.83402356,137.8,137.76,25.90840365]
[1745081523658,99.23402356,137.81,137.76,42.74242721]
[1745081525464,82.4,137.81,137.76,42.74242721]
[1745081525650,82.4,137.81,137.78,16.83402356]
[1745081525838,82.4,137.81,137.79,16.83402356]
[1745081526159,82.4,137.81,137.79,24.09105238]
[1745081526555,82.4,137.81,137.79,7.25702882]
[1745081526767,106.48941094,137.83,137.79,7.25702882]
[1745081526935,106.48941094,137.83,137.77,7.25847426]
[1745081527140,106.48941094,137.83,137.77,24.09249782]
[1745081527141,16.83402356,137.82,137.77,24.09249782]
[1745081527340,106.48941094,137.83,137.77,24.09249782]
[1745081529362,106.48941094,137.83,137.78,24.09174421]
[1745081530054,82.4,137.83,137.79,16.83402356]
[1745081530248,82.4,137.83,137.8,16.83402356]
[1745081530451,82.4,137.83,137.79,35.48367242]
[1745081530854,82.4,137.83,137.78,7.25772065]
[1745081531253,82.4,137.83,137.79,16.83402356]
[1745081531440,82.4,137.83,137.79,24.09099377]
[1745081535341,16.83402356,137.81,137.75,18.14852835]
[1745081535536,16.83402356,137.81,137.76,16.83402356]
[1745081535838,82.4,137.8,137.77,16.83402356]
[1745081536046,99.23402356,137.83,137.78,16.83402356]
[1745081536738,82.4,137.83,137.79,16.83402356]
[1745081536939,82.4,137.83,137.77,18.64964886]
[1745081537149,106.48940835,137.83,137.76,18.64964886]
[1745081537354,106.48940835,137.83,137.78,16.83402356]
[1745081537749,106.48940835,137.83,137.77,7.25847426]
[1745081537936,89.65538479,137.83,137.76,7.25875365]
[1745081538255,16.83402356,137.8,137.75,7.25938108]
[1745081538446,82.4,137.79,137.75,24.09340464]
[1745081539043,82.4,137.79,137.76,16.83402356]
[1745081539251,82.4,137.79,137.76,18.64964886]
[1745081539451,82.4,137.79,137.76,35.48367242]
[1745081539657,82.4,137.79,137.78,35.48367242]
[1745081539855,99.23402356,137.83,137.79,7.25742071]
[1745081540159,82.4,137.83,137.79,24.09144427]
[1745081541453,82.4,137.83,137.81,16.83402356]
[1745081541657,99.23402356,137.83,137.79,7.25742071]
[1745081543343,82.4,137.83,137.79,24.09144427]
[1745081543545,82.4,137.83,137.81,16.83402356]
[1745081543761,0.063,137.84,137.81,24.08990925]
[1745081546567,0.063,137.84,137.81,7.25588569]
[1745081546740,0.063,137.84,137.81,24.08990925]
[1745081547147,0.063,137.84,137.81,7.25588569]
[1745081547349,0.063,137.84,137.81,24.08990925]
[1745081548553,0.063,137.84,137.82,35.48367242]
[1745081549658,0.063,137.84,137.83,7.25531451]
[1745081550083,16.89702356,137.84,137.8,24.0909176]
[1745081550250,0.063,137.84,137.8,24.0909176]
[1745081551872,0.063,137.84,137.82,7.25584095]
[1745081552074,0.063,137.84,137.79,18.1424794]
[1745081552075,16.89702356,137.84,137.8,7.25689404]
[1745081552249,0.063,137.84,137.8,24.0909176]
[1745081553578,0.063,137.84,137.82,16.83402356]
[1745081554177,0.063,137.84,137.83,16.83402356]
[1745081554973,0.063,137.84,137.82,16.83402356]
[1745081555678,0.063,137.84,137.82,24.08947832]
[1745081557673,0.063,137.84,137.82,7.25545476]
[1745081557867,0.063,137.84,137.82,24.08947832]
[1745081558268,0.063,137.84,137.81,42.73978597]
[1745081558573,0.063,137.84,137.82,16.83402356]
[1745081559165,0.063,137.84,137.8,18.64964886]
[1745081559651,0.063,137.84,137.81,16.83402356]
[1745081560058,0.063,137.84,137.8,25.90606422]
[1745081560252,0.063,137.84,137.8,7.25641536]
[1745081561377,0.063,137.84,137.8,24.09043892]
[1745081562783,0.063,137.84,137.81,24.090388]
[1745081564889,82.463,137.84,137.81,24.090388]
[1745081565967,82.463,137.84,137.82,16.83402356]
[1745081567080,82.463,137.84,137.83,16.83402356]
[1745081568984,82.463,137.84,137.82,16.83402356]
[1745081569477,82.463,137.84,137.81,42.73961718]
[1745081569680,82.463,137.84,137.81,7.25594476]
[1745081569871,82.463,137.84,137.8,24.09076353]
[1745081570570,82.463,137.84,137.8,7.25673997]
[1745081570775,82.463,137.84,137.77,16.83402356]
[1745081570776,16.83402356,137.82,137.77,16.83402356]
[1745081571078,82.4,137.83,137.79,16.83402356]
[1745081571281,82.4,137.83,137.78,10.77257398]
[1745081571473,93.17257398,137.83,137.77,25.90812312]
[1745081571663,93.17257398,137.83,137.78,10.77257398]
[1745081571869,93.17257398,137.83,137.77,25.90812312]
[1745081572070,93.17257398,137.83,137.78,10.77257398]
[1745081573184,99.23304678,137.83,137.78,16.83304678]
[1745081573682,99.23304678,137.83,137.79,7.25742071]
[1745081573877,82.4,137.83,137.79,24.09046749]
[1745081574182,82.4,137.83,137.8,16.83304678]
[1745081574794,82.4,137.83,137.79,24.09046749]
[1745081575607,82.4,137.83,137.8,24.08947458]
[1745081576885,0.063,137.84,137.82,16.83304678]
[1745081577083,0.063,137.84,137.81,16.83304678]
[1745081577292,0.063,137.84,137.8,24.08947458]
[1745081577671,0.063,137.84,137.81,24.08925234]
[1745081578786,82.4,137.83,137.76,19.76492954]
[1745081579090,82.4,137.82,137.77,35.48269564]
[1745081579272,82.4,137.82,137.78,16.83304678]
[1745081579470,82.4,137.82,137.76,19.76492954]
[1745081579474,99.23304678,137.81,137.76,18.45074678]
[1745081579771,99.23304678,137.81,137.76,25.70957119]
[1745081579971,82.4,137.81,137.77,16.83304678]
[1745081581378,99.23304678,137.81,137.76,24.09187119]
[1745081581582,99.23304678,137.81,137.76,7.25882441]
[1745081581583,16.83304678,137.8,137.76,7.25882441]
[1745081582189,99.23304678,137.81,137.76,24.09187119]
[1745081582487,106.48942086,137.81,137.76,24.09187119]
[1745081582695,106.48942086,137.81,137.74,25.90920608]
[1745081582696,16.83304678,137.79,137.74,25.90920608]
[1745081582892,16.83304678,137.77,137.74,7.25955722]
[1745081583194,99.23304678,137.77,137.73,7.26040573]
[1745081583894,82.4,137.77,137.72,7.29110949]
[1745081584192,106.49153847,137.77,137.72,7.29110949]
[1745081584405,16.83304678,137.76,137.72,7.29110949]
[1745081585180,88.4558,137.77,137.72,7.29110949]
[1745081585380,105.28884678,137.77,137.72,24.12415627]
[1745081585695,99.23304678,137.76,137.72,0.03]
[1745081585900,16.83304678,137.74,137.72,0.03]
[1745081586085,99.23304678,137.73,137.72,0.03]
[1745081586397,82.4,137.73,137.72,0.03]
[1745081587005,16.83304678,137.73,137.72,0.03]
[1745081588179,24.09362907,137.73,137.72,0.03]
[1745081590211,30.55592907,137.73,137.72,0.03]
[1745081591381,56.55592907,137.73,137.72,0.03]
[1745081591781,23.32013155,137.74,137.72,0.03]
[1745081591986,32.89304678,137.74,137.72,0.03]
[1745081592298,16.83304678,137.73,137.72,0.03]
[1745081592705,23.32024489,137.74,137.72,0.03]
[1745081592906,42.83304678,137.73,137.72,0.03]
[1745081593204,50.09362907,137.73,137.72,0.03]
[1745081595406,26.0,137.73,137.72,0.03]
[1745081595784,42.83304678,137.73,137.72,0.03]
[1745081597310,44.0501256,137.73,137.72,0.03]
[1745081599715,33.26058229,137.73,137.72,0.03]
[1745081599891,16.06,137.74,137.72,0.03]
[1745081600804,17.34864331,137.76,137.72,0.03]
[1745081601003,45.56504316,137.77,137.72,10.81954331]
[1745081601210,82.4,137.74,137.72,10.81954331]
[1745081601896,82.4,137.74,137.72,18.08042405]
[1745081606019,82.4,137.76,137.72,18.08042405]
[1745081606396,82.4,137.76,137.73,10.78954331]
[1745081606599,82.4,137.76,137.72,18.08042405]
[1745081607303,82.4,137.76,137.73,10.78954331]
[1745081607507,82.4,137.76,137.74,10.78954331]
[1745081608523,82.4,137.76,137.74,7.25972122]
[1745081609726,82.4,137.76,137.73,7.26033766]
[1745081610313,82.4,137.76,137.72,18.08040337]
[1745081610648,82.4,137.76,137.72,10.81954331]
[1745081610829,82.4,137.76,137.72,0.03]
[1745081611125,10.78954331,137.73,137.72,0.03]
[1745081611910,36.78954331,137.73,137.72,0.03]
[1745081612520,44.0501256,137.73,137.72,0.03]
[1745081614040,33.26058229,137.73,137.72,0.03]
[1745081614216,6.5186,137.74,137.72,0.03]
[1745081614217,44.0491961,137.75,137.72,0.03]
[1745081614530,33.25965279,137.75,137.72,0.03]
[1745081614733,44.0491961,137.75,137.72,0.03]
[1745081615028,36.78954331,137.77,137.72,10.81954331]
[1745081615538,10.78954331,137.76,137.72,0.03]
[1745081615831,82.4,137.74,137.72,0.03]
[1745081616729,100.44964088,137.74,137.72,0.03]
[1745081618028,82.4,137.74,137.72,0.03]
[1745081618807,100.44960953,137.74,137.72,0.03]
[1745081619008,93.18954331,137.73,137.72,0.03]
[1745081620229,100.4501256,137.73,137.72,0.03]
[1745081620725,93.18954331,137.73,137.72,0.03]
[1745081621025,82.4,137.73,137.72,0.03]
[1745081621924,82.4,137.73,137.72,10.81954331]
[1745081622531,82.4,137.73,137.72,18.0806528]
[1745081622732,82.4,137.73,137.72,7.29110949]
[1745081623028,82.4,137.73,137.72,18.0806528]
[1745081623835,82.4,137.73,137.72,7.29110949]
[1745081626440,82.4,137.75,137.72,7.29110949]
[1745081627135,82.4,137.75,137.72,0.03]
[1745081628442,82.4,137.75,137.73,10.78954331]
[1745081628940,82.4,137.77,137.74,10.78954331]
[1745081629129,82.4,137.77,137.75,10.78954331]
[1745081629536,82.4,137.77,137.74,10.78954331]
[1745081630143,82.4,137.77,137.73,10.78954331]
[1745081630535,93.18954331,137.77,137.73,10.78954331]
[1745081630747,93.18954331,137.77,137.72,10.81954331]
[1745081631132,93.18954331,137.77,137.72,18.08036645]
[1745081631746,82.4,137.77,137.73,10.78954331]
[1745081632334,82.4,137.76,137.73,10.78954331]
[1745081632516,82.4,137.76,137.73,18.04988858]
[1745081633245,82.4,137.76,137.73,7.26034527]
[1745081634435,82.4,137.76,137.73,18.04988858]
[1745081634754,82.4,137.76,137.73,7.26034527]
[1745081635952,82.4,137.76,137.72,18.08041705]
[1745081636147,100.44871467,137.76,137.72,0.03]
[1745081636450,93.18954331,137.75,137.72,0.03]
[1745081636629,82.4,137.75,137.72,0.03]
[1745081637024,82.4,137.75,137.72,10.81954331]
[1745081637348,82.4,137.77,137.74,10.78954331]
[1745081637538,82.4,137.77,137.75,10.78954331]
[1745081637854,82.4,137.77,137.74,10.78954331]
[1745081639136,82.4,137.77,137.74,18.04959848]
[1745081639751,82.4,137.77,137.74,7.26005517]
[1745081640929,82.4,137.77,137.74,18.04959848]
[1745081641348,82.4,137.77,137.73,18.04998914]
[1745081641849,10.78954331,137.76,137.72,7.29098587]
[1745081642349,100.44802039,137.77,137.72,7.29098587]
[1745081642542,82.4,137.77,137.74,10.78954331]
[1745081642847,82.4,137.77,137.75,10.78954331]
[1745081643028,100.44648733,137.8,137.75,18.04869512]
[1745081643227,82.4,137.79,137.76,10.78954331]
[1745081644354,82.4,137.79,137.75,7.25915181]
[1745081644547,82.4,137.79,137.75,18.04869512]
[1745081645851,93.18954331,137.79,137.75,18.04869512]
[1745081646451,100.44704251,137.79,137.74,10.78954331]
[1745081646652,89.6574992,137.79,137.74,10.78954331]
[1745081646954,93.18954331,137.78,137.74,10.78954331]
[1745081647458,93.18954331,137.78,137.73,18.04995109]
[1745081648556,100.44765176,137.78,137.73,18.04995109]
[1745081649234,82.4,137.78,137.74,10.78954331]
[1745081649443,82.4,137.78,137.75,10.78954331]
[1745081649740,93.18954331,137.78,137.73,7.26040778]
[1745081650056,10.78954331,137.77,137.72,18.0804105]
[1745081650235,93.18954331,137.77,137.72,7.29086719]
[1745081650757,93.18954331,137.77,137.72,18.0804105]
[1745081650954,82.4,137.77,137.73,10.78954331]
[1745081651178,82.4,137.77,137.74,10.78954331]
[1745081651350,82.4,137.77,137.75,10.78954331]
[1745081652055,82.4,137.77,137.76,10.78954331]
[1745081652662,82.4,137.77,137.76,18.04854447]
[1745081652859,82.4,137.8,137.76,18.04854447]
[1745081653359,82.4,137.8,137.77,16.83938709]
[1745081653561,82.4,137.8,137.76,24.09838825]
[1745081659775,82.4,137.8,137.78,16.83938709]
[1745081660068,82.4,137.8,137.76,7.25900116]
[1745081660069,108.4,137.83,137.79,16.83938709]
[1745081660567,108.4,137.83,137.76,44.05615292]
[1745081660568,108.4,137.83,137.78,16.83938709]
[1745081660772,125.23938709,137.83,137.78,16.83938709]
[1745081661269,125.23938709,137.83,137.79,7.25742071]
[1745081662260,99.23938709,137.83,137.79,7.25742071]
[1745081663268,16.83938709,137.81,137.77,7.25836768]
[1745081663676,16.83938709,137.82,137.77,24.09775477]
[1745081664175,16.83938709,137.81,137.77,24.09775477]
[1745081664564,99.23938709,137.81,137.77,24.09775477]
[1745081664773,82.4,137.81,137.77,24.09775477]
[1745081665270,82.4,137.81,137.79,16.83938709]
[1745081665445,82.4,137.81,137.8,7.25689404]
[1745081665957,82.4,137.81,137.79,7.25720519]
[1745081667278,82.4,137.81,137.78,7.25779552]
[1745081667480,99.23938709,137.81,137.77,7.25825361]
[1745081667976,82.4,137.81,137.77,24.0976407]
[1745081668983,99.23938709,137.81,137.77,7.25825361]
[1745081669279,99.23938709,137.8,137.75,24.09891522]
[1745081672173,16.83938709,137.79,137.75,7.25952813]
[1745081672376,16.83938709,137.79,137.74,7.25983438]
[1745081672559,16.83938709,137.77,137.73,7.26039317]
[1745081673358,16.83938709,137.77,137.72,24.13026808]
[1745081675259,10.78349337,137.74,137.72,0.03]
[1745081675983,10.78349337,137.75,137.72,0.03]
[1745081676161,10.78349337,137.74,137.72,0.03]
[1745081676362,89.65934794,137.76,137.72,0.03]
[1745081676566,10.78349337,137.75,137.72,0.03]
[1745081677580,93.18349337,137.76,137.72,0.03]
[1745081678781,82.4,137.76,137.74,10.78349337]
[1745081678960,43.02889337,137.79,137.72,0.03]
[1745081679279,10.78349337,137.78,137.73,10.78349337]
[1745081679791,43.02889337,137.79,137.74,10.78349337]
[1745081680287,10.78349337,137.78,137.73,29.43314223]
[1745081681091,10.78349337,137.78,137.74,7.26005517]
[1745081682081,93.18349337,137.78,137.74,7.26005517]
[1745081683991,82.4,137.78,137.74,18.04354854]
[1745081686979,82.4,137.78,137.75,29.43314223]
[1745081687291,93.18349337,137.8,137.75,29.43314223]
[1745081688073,82.4,137.8,137.76,18.04249453]
[1745081688792,82.4,137.8,137.77,10.78349337]
[1745081690193,82.4,137.8,137.78,7.25794745]
[1745081690385,15.04,137.81,137.78,7.25794745]
[1745081690589,10.78349337,137.8,137.76,7.25900116]
[1745081690885,25.82349337,137.81,137.76,18.04249453]
[1745081691285,15.04,137.81,137.76,18.04249453]
[1745081692191,15.04,137.81,137.75,18.64964886]
[1745081692192,82.463,137.84,137.79,29.43314223]
[1745081692794,93.24649337,137.84,137.79,29.43314223]
[1745081694173,93.24649337,137.84,137.8,7.25689404]
[1745081695707,82.463,137.84,137.8,18.04038741]
[1745081695876,82.463,137.84,137.81,10.78349337]
[1745081696385,82.463,137.84,137.8,18.04038741]
[1745081698402,82.463,137.84,137.81,18.03940043]
[1745081703578,82.463,137.84,137.82,10.78349337]
[1745081703797,0.063,137.84,137.82,10.78349337]
[1745081704496,0.063,137.84,137.82,18.03898382]
[1745081707476,0.063,137.84,137.83,10.78349337]
[1745081707873,0.063,137.84,137.79,20.23074886]
[1745081708074,0.063,137.84,137.8,10.78349337]
[1745081708283,0.063,137.84,137.79,20.23074886]
[1745081708485,93.24649337,137.84,137.79,29.43314223]
[1745081708684,93.24649337,137.84,137.79,10.78349337]
[1745081710403,93.24649337,137.84,137.8,10.78349337]
[1745081710794,82.463,137.84,137.8,10.78349337]
[1745081711103,82.463,137.84,137.81,10.78349337]
[1745081711495,0.063,137.84,137.81,10.78349337]
[1745081712581,0.063,137.84,137.82,10.78349337]
[1745081715310,0.063,137.84,137.81,18.03969112]
[1745081717305,0.063,137.84,137.81,10.78349337]
[1745081717497,0.063,137.84,137.8,29.43314223]
[1745081717701,0.063,137.84,137.8,10.78349337]
[1745081718006,0.063,137.84,137.78,36.6909308]
[1745081718007,10.78349337,137.83,137.78,36.6909308]
[1745081718211,93.18349337,137.83,137.79,10.78349337]
[1745081720412,10.78349337,137.81,137.75,1.6563]
[1745081720720,93.18349337,137.8,137.75,19.69917981]
[1745081721008,82.4,137.8,137.75,8.91568644]
[1745081721210,93.18349337,137.8,137.75,19.69917981]
[1745081721390,93.18349337,137.8,137.75,8.91568644]
[1745081721707,93.18349337,137.8,137.75,19.69917981]
[1745081722509,93.18349337,137.8,137.74,25.90956233]
[1745081722809,10.78349337,137.79,137.74,36.6930557]
[1745081723415,93.18349337,137.8,137.75,10.78349337]
[1745081724001,82.4,137.8,137.76,29.43314223]
[1745081724205,82.4,137.8,137.77,10.78349337]
[1745081724402,82.4,137.8,137.78,10.78349337]
[1745081724615,93.18349337,137.83,137.78,18.04123626]
[1745081724796,82.4,137.82,137.78,18.04123626]
[1745081727421,82.4,137.82,137.77,7.25847426]
[1745081727615,10.78349337,137.8,137.74,7.26005517]
[1745081727817,10.78349337,137.8,137.75,29.43314223]
[1745081728014,93.18349337,137.81,137.75,29.43314223]
[1745081728318,93.18349337,137.81,137.76,10.78349337]
[1745081729419,93.18349337,137.81,137.76,18.04224188]
[1745081732129,10.78349337,137.81,137.76,18.04224188]
[1745081735615,7.2560836,137.82,137.76,18.04224188]
[1745081735816,10.78349337,137.82,137.77,10.78349337]
[1745081736019,93.18349337,137.83,137.78,29.43314223]
[1745081736221,82.4,137.83,137.79,10.78349337]
[1745081736419,82.4,137.83,137.8,10.78349337]
[1745081737221,14.903,137.84,137.8,10.78349337]
[1745081737723,14.903,137.84,137.8,18.0402623]
[1745081739725,10.78349337,137.83,137.78,20.16864886]
[1745081739932,10.78349337,137.81,137.77,25.90792773]
[1745081740530,10.78349337,137.82,137.77,36.6914211]
[1745081741230,18.03956981,137.82,137.77,36.6914211]
[1745081743934,18.03993325,137.81,137.77,18.64964886]
[1745081745132,10.78349337,137.8,137.76,10.78349337]
[1745081745328,10.78349337,137.8,137.76,18.64964886]
[1745081745940,18.04048794,137.8,137.75,10.78349337]
[1745081746232,18.04048794,137.8,137.75,29.43314223]
[1745081746440,18.04048794,137.8,137.75,36.69260717]
[1745081746826,18.04048794,137.8,137.76,10.78349337]
[1745081747535,18.03986083,137.81,137.76,10.78349337]
[1745081748038,10.78349337,137.8,137.75,36.69260717]
[1745081748643,10.78349337,137.8,137.76,10.78349337]
[1745081748941,7.25636746,137.81,137.77,10.78349337]
[1745081749340,24.37049974,137.82,137.77,10.78349337]
[1745081749638,10.78349337,137.82,137.77,29.43314223]
[1745081749835,10.78349337,137.81,137.77,18.64964886]
[1745081750442,10.78349337,137.82,137.77,29.43314223]
[1745081750743,10.78349337,137.81,137.77,29.43314223]
[1745081751346,10.78349337,137.81,137.77,25.90801812]
[1745081753358,18.03946658,137.82,137.77,36.69151149]
[1745081755949,7.25597321,137.82,137.77,36.69151149]
[1745081756151,18.03946658,137.82,137.77,36.69151149]
[1745081764469,7.25597321,137.82,137.78,10.78349337]
[1745081764663,93.18349337,137.83,137.78,18.04136999]
[1745081764874,82.4,137.83,137.78,18.04136999]
[1745081765058,82.4,137.83,137.79,29.43314223]
[1745081765571,100.43881666,137.83,137.79,18.64964886]
[1745081766057,10.78349337,137.82,137.79,18.64964886]
[1745081766663,18.03944645,137.82,137.78,18.64964886]
[1745081767169,100.43903779,137.83,137.78,29.43314223]
[1745081767368,82.4,137.83,137.79,10.78349337]
[1745081767962,82.4,137.83,137.8,10.78349337]
[1745081768161,0.063,137.84,137.8,10.78349337]
[1745081768363,10.84649337,137.84,137.8,10.78349337]
[1745081769881,18.10143774,137.84,137.79,36.69040415]
[1745081771371,18.10143774,137.84,137.79,29.43314223]
[1745081773192,10.78349337,137.83,137.77,7.25823087]
[1745081773373,7.25584095,137.82,137.78,29.43314223]
[1745081773689,7.25551526,137.83,137.78,18.64964886]
[1745081773859,18.03900863,137.83,137.78,29.43314223]
[1745081774368,18.03900863,137.83,137.78,36.69103253]
[1745081776085,82.463,137.84,137.78,36.69103253]
[1745081776086,93.24649337,137.84,137.79,10.78349337]
[1745081776389,82.463,137.84,137.8,10.78349337]
[1745081776894,89.71783839,137.84,137.8,10.78349337]
[1745081777073,82.463,137.84,137.81,10.78349337]
[1745081778283,82.463,137.84,137.81,29.43314223]
[1745081778476,82.463,137.84,137.81,18.64964886]
[1745081778671,100.50144562,137.84,137.79,12.42419337]